bitfinex-derivatives/quotes_ETHF0:USTF0_20250530
["timestamp","ask_amount","ask_price","bid_price","bid_amount"]
[1748648643340,3.2078,2521.2,2521.1,2.0521]
[1748648643542,3.4061,2521.2,2521.1,2.8451]
[1748648643737,4.19906,2521.2,2521.1,2.0521]
[1748648643944,3.4061,2521.2,2521.1,2.0521]
[1748648644443,0.1983,2521.2,2521.1,2.0521]
[1748648644941,0.79303,2521.0,2520.9,0.00594908]
[1748648645136,0.79303,2521.0,2520.9,5.80594908]
[1748648645538,0.79303,2521.0,2520.9,0.00594908]
[1748648645734,0.79303,2521.0,2520.9,5.80594908]
[1748648645941,2.93173,2521.0,2520.9,5.80594908]
[1748648646951,2.93173,2521.0,2520.9,0.00594908]
[1748648647246,2.93173,2521.0,2520.9,5.80594908]
[1748648648138,2.1387,2521.0,2520.9,0.00594908]
[1748648648340,2.1387,2521.0,2520.9,5.80594908]
[1748648648545,2.93173,2521.0,2520.9,5.80594908]
[1748648648844,0.79303,2521.0,2520.9,5.80594908]
[1748648649047,2.87783,2521.0,2520.9,5.80594908]
[1748648649242,3.4061,2521.2,2521.0,0.79301]
[1748648649442,4.19906,2521.2,2520.9,5.80594908]
[1748648649642,3.4061,2521.2,2520.9,7.80324908]
[1748648649844,3.4061,2521.2,2520.9,9.94574908]
[1748648650345,3.4061,2521.2,2520.9,11.99014908]
[1748648650548,3.4061,2521.2,2521.0,0.793]
[1748648650744,3.4061,2521.2,2521.1,0.793]
[1748648650947,0.1983,2521.2,2521.1,0.793]
[1748648651255,0.1983,2521.2,2521.0,2.79032]
[1748648651955,0.1983,2521.2,2520.9,2.14844908]
[1748648652161,0.1983,2521.2,2520.9,0.00594908]
[1748648652162,0.79303,2521.0,2520.9,0.00594908]
[1748648652645,10.98683,2521.0,2520.9,0.00594908]
[1748648652850,0.79315,2520.6,2520.5,39.992]
[1748648653155,0.79315,2520.6,2520.5,5.799]
[1748648653654,2.98965,2520.6,2520.5,5.799]
[1748648654142,0.79322,2520.4,2520.3,5.80494908]
[1748648654346,4.00102,2520.4,2520.3,5.80494908]
[1748648655053,0.79347,2519.6,2519.5,3.27773857]
[1748648655240,0.79347,2519.6,2519.5,5.799]
[1748648655449,0.79346,2519.7,2519.5,5.799]
[1748648655754,2.81877,2519.6,2519.5,5.799]
[1748648656147,2.0253,2519.6,2519.5,5.799]
[1748648656347,2.81877,2519.6,2519.5,5.799]
[1748648656850,2.0253,2519.6,2519.5,5.799]
[1748648657354,0.00594908,2519.8,2519.5,5.799]
[1748648657544,0.00594908,2519.8,2519.7,0.79344]
[1748648657748,0.00594908,2519.8,2519.7,4.00124]
[1748648657950,0.00594908,2519.8,2519.7,6.13144]
[1748648659855,0.00594908,2519.8,2519.7,5.338]
[1748648660046,0.00594908,2519.8,2519.7,5.8]
[1748648660253,0.79351,2519.5,2519.3,0.00594908]
[1748648660449,0.79353,2519.4,2519.3,0.00594908]
[1748648660649,5.00073,2519.4,2519.3,0.00594908]
[1748648660852,4.2072,2519.4,2518.9,5.8]
[1748648661058,0.79364,2519.1,2518.9,5.8]
[1748648661660,4.2072,2519.4,2518.9,5.8]
[1748648661860,0.79357,2519.3,2518.9,8.76157]
[1748648662157,2.93367,2519.3,2518.9,8.76157]
[1748648662463,1.98947908,2519.8,2518.9,8.76157]
[1748648662464,0.00594908,2519.8,2519.0,3.2078]
[1748648662761,0.00594908,2519.8,2518.9,12.9679]
[1748648662762,0.00594908,2519.8,2519.7,0.79343]
[1748648662961,0.00594908,2519.8,2519.7,6.59343]
[1748648663359,0.00594908,2519.8,2519.7,6.66336857]
[1748648663559,0.00594908,2519.8,2519.7,8.74796857]
[1748648664164,0.79934908,2519.8,2519.7,0.06993857]
[1748648664360,3.21374908,2519.8,2519.7,0.06993857]
[1748648664659,9.00714908,2519.8,2519.7,0.06993857]
[1748648665354,4.00714908,2519.8,2519.7,0.06993857]
[1748648665867,35.16274908,2519.8,2517.8,3.2078]
[1748648666061,0.79396,2518.1,2517.8,3.2078]
[1748648666363,0.79389,2518.3,2517.8,5.3981]
[1748648666664,0.79394,2518.2,2517.9,5.771]
[1748648666960,2.024,2518.2,2517.9,8.75529]
[1748648667361,0.79982908,2518.3,2517.9,8.75529]
[1748648667563,0.00594908,2518.3,2517.9,8.75529]
[1748648667762,0.79983908,2518.3,2517.9,10.139]
[1748648667959,0.79983908,2518.3,2517.9,10.93298]
[1748648668264,0.1985,2518.2,2517.9,10.139]
[1748648669464,0.1985,2518.2,2517.9,10.93299]
[1748648669966,0.1985,2518.2,2517.9,10.139]
[1748648670166,0.1985,2518.2,2517.9,5.16199]
[1748648670368,0.1985,2518.2,2518.0,5.773]
[1748648670558,0.1985,2518.2,2517.8,0.00396601]
[1748648670759,0.794,2517.9,2517.8,0.00396601]
[1748648671665,5.972,2518.1,2517.8,0.00396601]
[1748648671855,5.972,2518.1,2518.0,0.79397]
[1748648672368,0.1985,2518.2,2518.1,0.79394]
[1748648672661,0.1985,2518.2,2518.1,6.56694]
[1748648673369,3.2078,2518.6,2518.4,0.79383]
[1748648673569,3.2078,2518.6,2518.5,2.79571]
[1748648673861,3.2078,2518.6,2518.5,2.0019]
[1748648674267,0.79378,2518.6,2518.5,2.0019]
[1748648674870,5.972,2518.7,2518.5,2.0019]
[1748648675071,6.76575,2518.7,2518.6,5.774]
[1748648675272,9.97355,2518.7,2518.6,5.774]
[1748648675870,6.76575,2518.7,2518.6,5.774]
[1748648676967,0.20444908,2518.8,2518.6,5.774]
[1748648677166,0.20444908,2518.8,2518.7,4.00155]
[1748648677365,0.20444908,2518.8,2518.7,2.94105]
[1748648677666,0.20444908,2518.8,2518.7,7.9213]
[1748648678065,0.20444908,2518.8,2518.7,8.71505]
[1748648678265,0.20444908,2518.8,2518.7,11.92285]
[1748648678464,0.20444908,2518.8,2518.7,16.92285]
[1748648679073,5.972,2519.2,2519.1,0.79362]
[1748648679372,5.972,2519.2,2518.7,16.1291]
[1748648679373,5.972,2519.6,2519.3,0.79355]
[1748648679567,3.2078,2520.1,2519.4,7.8027]
[1748648679771,3.2078,2520.1,2519.5,2.0357]
[1748648680070,0.79343,2519.7,2519.6,2.0287]
[1748648680477,0.79347,2519.6,2519.5,0.00594908]
[1748648681964,5.79347,2519.6,2519.5,0.00594908]
[1748648682163,0.79347,2519.6,2519.5,0.00594908]
[1748648684670,3.4062,2519.7,2519.5,0.00594908]
[1748648685081,0.79347,2519.6,2519.5,0.00594908]
[1748648685573,0.1984,2519.7,2519.5,0.00594908]
[1748648685775,0.1984,2519.7,2519.5,0.79942908]
[1748648686078,0.79347,2519.6,2519.5,0.00594908]
[1748648689975,5.79347,2519.6,2519.5,0.00594908]
[1748648690182,0.79369,2518.9,2518.8,5.773]
[1748648690375,4.00149,2518.9,2518.8,5.773]
[1748648690576,0.79369,2518.9,2518.8,5.773]
[1748648690975,2.93237,2519.0,2518.8,5.773]
[1748648691281,3.2078,2518.9,2518.8,5.773]
[1748648691480,5.3465,2518.9,2518.8,5.773]
[1748648692076,6.14019,2518.9,2518.8,5.773]
[1748648692885,5.3465,2518.9,2518.8,5.773]
[1748648693379,5.972,2519.1,2518.9,0.79368]
[1748648693584,3.04974,2519.7,2518.9,3.2078]
[1748648693881,2.2563,2519.7,2519.5,0.06993857]
[1748648694077,0.79347,2519.6,2519.5,0.06993857]
[1748648694675,5.79347,2519.6,2519.5,0.06993857]
[1748648695283,0.79347,2519.6,2519.5,0.06993857]
[1748648695976,4.00127,2519.6,2519.5,0.06993857]
[1748648696181,0.79347,2519.6,2519.5,0.06993857]
[1748648696382,2.84317,2519.6,2519.5,0.06993857]
[1748648696581,6.05097,2519.6,2519.5,0.06993857]
[1748648696981,2.84317,2519.6,2519.5,0.06993857]
[1748648698886,0.79347,2519.6,2519.5,0.06993857]
[1748648699682,0.1984,2519.7,2519.5,0.06993857]
[1748648700082,0.99183,2519.7,2519.6,2.2148]
[1748648700388,0.1984,2519.7,2519.6,6.21607]
[1748648700586,0.00594908,2520.1,2520.0,0.79334]
[1748648700785,0.00594908,2520.1,2520.0,8.9558]
[1748648701085,0.79925908,2520.1,2520.0,5.748]
[1748648701273,0.00594908,2520.1,2520.0,5.748]
[1748648701879,0.79925908,2520.1,2520.0,7.9628]
[1748648702075,8.2198,2520.8,2520.7,0.79312]
[1748648702076,2.2478,2520.8,2520.7,0.79312]
[1748648702386,2.1377,2521.0,2520.7,3.2078]
[1748648702574,2.2179,2521.1,2520.4,3.2078]
[1748648702777,2.0831,2521.0,2520.5,5.748]
[1748648703284,0.00594908,2521.0,2520.7,3.2078]
[1748648703482,0.79897908,2521.0,2520.8,2.1228]
[1748648704084,0.00594908,2521.0,2520.8,2.1228]
[1748648704979,0.00594908,2521.0,2520.8,2.19273857]
[1748648705781,0.00594908,2521.0,2520.8,2.98581857]
[1748648705976,0.00594908,2521.0,2520.8,2.1228]
[1748648706681,0.00594908,2521.0,2520.8,7.8698]
[1748648707281,0.00594908,2521.0,2520.9,0.79306]
[1748648707481,0.00594908,2521.0,2520.9,2.87986]
[1748648708388,0.00594908,2521.0,2520.9,2.0868]
[1748648708692,0.00594908,2521.0,2520.9,2.87986]
[1748648708989,0.00594908,2521.0,2520.9,2.0868]
[1748648709488,0.00594908,2521.0,2520.9,7.8328]
[1748648709789,0.00594908,2521.0,2520.9,8.62586]
[1748648710090,0.00594908,2521.0,2520.9,7.8328]
[1748648711781,0.00594908,2521.0,2520.9,8.62586]
[1748648712597,0.00594908,2521.0,2520.9,7.8328]
[1748648712796,0.00594908,2521.0,2520.9,8.62586]
[1748648713991,0.00594908,2521.0,2520.9,7.8328]
[1748648714591,0.00594908,2521.0,2520.9,2.0868]
[1748648714796,0.79312,2520.7,2520.6,2.0704]
[1748648715098,0.79315,2520.7,2520.5,5.75094908]
[1748648715289,0.79315,2520.6,2520.5,0.00594908]
[1748648715594,0.00594908,2521.0,2520.5,0.00594908]
[1748648715798,2.21424908,2521.0,2520.7,0.7931]
[1748648715998,0.00594908,2521.0,2520.7,5.745]
[1748648716197,0.79898908,2521.0,2520.8,2.26053857]
[1748648716396,0.00594908,2521.0,2520.8,2.26053857]
[1748648716593,0.79897908,2521.0,2520.8,2.26053857]
[1748648716900,0.79306,2520.9,2520.8,2.26053857]
[1748648717100,0.00594908,2521.0,2520.7,5.745]
[1748648717101,0.79309,2520.8,2520.7,5.745]
[1748648717496,2.21424908,2521.0,2520.7,5.745]
[1748648717801,0.79306,2520.9,2520.7,5.745]
[1748648718001,0.00594908,2521.0,2520.8,2.2467]
[1748648718194,0.00594908,2521.0,2520.8,2.31663857]
[1748648719098,0.00594908,2521.0,2520.8,2.2467]
[1748648719692,0.00594908,2521.0,2520.9,0.79306]
[1748648720305,0.00594908,2521.0,2520.8,3.03978]
[1748648721100,0.79306,2520.9,2520.8,2.2467]
[1748648721300,0.00594908,2521.0,2520.8,2.2467]
[1748648721596,0.79897908,2521.0,2520.8,2.2467]
[1748648721801,0.79898908,2521.0,2520.8,2.2467]
[1748648722197,0.00594908,2521.0,2520.8,2.2467]
[1748648722602,0.00594908,2521.0,2520.8,3.03977]
[1748648722798,0.00594908,2521.0,2520.8,2.2467]
[1748648722997,0.00594908,2521.0,2520.8,3.03977]
[1748648723201,0.00594908,2521.0,2520.9,0.79306]
[1748648723509,0.00594908,2521.0,2520.9,3.05346]
[1748648724309,0.79282,2521.7,2521.4,0.7929]
[1748648724499,0.79284,2521.6,2521.5,7.7962]
[1748648725101,0.79282,2521.7,2521.5,7.7962]
[1748648725303,0.79283,2521.7,2521.5,7.7962]
[1748648725503,0.79284,2521.6,2521.5,7.7962]
[1748648726006,0.79284,2521.6,2521.5,5.724]
[1748648726212,2.1076,2521.8,2521.5,5.724]
[1748648726705,2.90039,2521.8,2521.6,2.0722]
[1748648727104,0.00594908,2521.9,2521.8,0.79278]
[1748648727305,0.00594908,2521.9,2521.8,2.94748]
[1748648727504,0.00594908,2521.9,2521.8,2.1547]
[1748648728007,0.00594908,2521.9,2521.8,2.94748]
[1748648728304,0.00594908,2521.9,2521.8,2.1547]
[1748648728502,0.00594908,2521.9,2521.8,0.79278]
[1748648728703,2.2428,2522.4,2521.8,5.724]
[1748648728908,2.1773,2522.5,2522.3,0.79262]
[1748648729107,0.79253,2522.6,2522.4,5.724]
[1748648729296,2.2357,2522.9,2522.4,5.724]
[1748648729297,2.2428,2522.8,2522.4,5.724]
[1748648729497,0.79251,2522.7,2522.4,5.724]
[1748648729700,3.04122908,2522.8,2522.4,8.67128]
[1748648729901,0.00594908,2522.8,2522.4,7.8787]
[1748648730111,0.00594908,2522.8,2522.7,3.2078]
[1748648730303,0.00594908,2522.8,2522.7,5.31]
[1748648730704,0.00594908,2522.8,2522.7,6.10249]
[1748648731000,0.00594908,2522.8,2522.7,5.31]
[1748648731311,0.79842908,2522.8,2522.5,7.9182]
[1748648731609,0.00594908,2522.8,2522.6,2.1022]
[1748648731807,0.00594908,2522.8,2522.7,3.2078]
[1748648732610,0.00594908,2522.8,2522.7,4.00029]
[1748648732907,0.00594908,2522.8,2522.7,3.2078]
[1748648733513,0.00594908,2522.8,2522.5,5.723]
[1748648733813,0.00594908,2522.8,2522.6,5.722]
[1748648734113,0.00594908,2522.8,2522.7,3.2078]
[1748648734306,0.00594908,2522.8,2522.7,5.3559]
[1748648734500,0.00594908,2522.8,2522.7,10.61759]
[1748648734700,0.79214,2523.9,2522.7,15.61759]
[1748648734911,0.79217,2523.8,2523.4,4.00007]
[1748648735108,2.87927,2523.8,2523.5,5.722]
[1748648735709,2.0871,2523.8,2523.5,5.722]
[1748648735911,2.87925,2523.8,2523.7,3.2078]
[1748648736106,0.00594908,2523.9,2523.7,3.2078]
[1748648736107,0.00594908,2523.9,2523.7,3.99997]
[1748648736410,7.20765,2524.5,2524.0,0.79207]
[1748648736611,0.07922674,2524.4,2524.1,11.87525]
[1748648736812,0.07922674,2524.4,2524.2,7.8754]
[1748648737011,0.07922674,2524.4,2524.3,2.1544]
[1748648738018,0.87118674,2524.4,2524.2,5.721]
[1748648738215,0.87118674,2524.4,2524.2,6.51301]
[1748648738216,0.07922674,2524.4,2524.2,6.51301]
[1748648738511,0.07922674,2524.4,2524.3,2.1544]
[1748648738709,2.8799,2525.0,2524.5,0.79192]
[1748648738908,2.8799,2525.0,2524.6,5.3622]
[1748648738909,0.79181,2524.9,2524.6,5.3622]
[1748648739112,0.79181,2524.9,2524.7,7.8744]
[1748648739311,0.79184,2524.8,2524.7,7.8744]
[1748648739618,2.0881,2525.0,2524.7,7.8744]
[1748648739911,2.89819,2525.3,2524.8,2.1784]
[1748648740311,0.87090851,2525.3,2524.8,2.1784]
[1748648740508,0.07919851,2525.3,2524.9,3.2078]
[1748648740709,0.07919851,2525.3,2525.0,2.1784]
[1748648740911,0.79177,2525.0,2524.9,3.2078]
[1748648741110,0.79184,2524.8,2524.7,5.72]
[1748648741711,2.93764,2524.8,2524.7,5.72]
[1748648741911,0.79196,2524.4,2524.3,8.9278]
[1748648742111,2.2292,2524.7,2524.3,8.9278]
[1748648742317,0.79192,2524.6,2524.3,8.9278]
[1748648742514,2.2292,2524.7,2524.3,8.9278]
[1748648742717,0.79196,2524.4,2524.3,8.9278]
[1748648743421,2.2292,2524.7,2524.3,8.9278]
[1748648743617,0.79195,2524.5,2524.3,8.9278]
[1748648743913,0.79196,2524.4,2524.3,8.9278]
[1748648744118,0.79196,2524.4,2524.3,3.2078]
[1748648744321,0.79202,2524.3,2524.1,8.93174908]
[1748648744520,0.79202,2524.3,2524.1,11.21414908]
[1748648744715,0.79193,2524.6,2524.2,2.2824]
[1748648744911,2.1458,2524.8,2524.4,3.2078]
[1748648745220,0.7919,2524.6,2524.5,2.2824]
[1748648745417,2.1458,2524.8,2524.5,2.2824]
[1748648745618,2.1458,2524.8,2524.6,5.718]
[1748648745920,2.93765,2524.8,2524.6,5.718]
[1748648746128,3.2078,2525.4,2524.7,3.2078]
[1748648746314,3.2078,2525.4,2524.8,0.79182]
[1748648746511,0.79168,2525.3,2524.9,2.96779]
[1748648746820,0.79171,2525.2,2524.9,2.176]
[1748648747019,0.79174,2525.2,2524.9,2.176]
[1748648747220,0.79169,2525.3,2524.9,2.176]
[1748648747423,0.79171,2525.2,2525.0,3.2078]
[1748648747722,0.7917,2525.3,2525.1,7.894]
[1748648748114,0.79171,2525.2,2525.1,7.894]
[1748648748314,2.1551,2525.6,2525.1,7.894]
[1748648748515,0.79168,2525.4,2525.2,2.1378]
[1748648748715,0.79165,2525.5,2525.2,2.1378]
[1748648748921,2.1551,2525.6,2525.3,3.2078]
[1748648749121,0.79163,2525.5,2525.3,3.2078]
[1748648749322,0.79162,2525.5,2525.3,3.2078]
[1748648749525,0.86154857,2525.6,2525.4,4.3664]
[1748648749721,0.86153857,2525.6,2525.4,4.3664]
[1748648749923,0.06993857,2525.6,2525.4,4.3664]
[1748648750226,0.86152857,2525.6,2525.4,4.3664]
[1748648750724,0.79159,2525.6,2525.4,4.3664]
[1748648751125,0.79162,2525.5,2525.4,4.3664]
[1748648751321,0.79163,2525.5,2525.3,8.9238]
[1748648751622,0.79165,2525.4,2525.3,11.0336]
[1748648751825,0.79165,2525.4,2525.3,8.9238]
[1748648752029,0.79165,2525.4,2525.3,5.716]
[1748648755328,0.79168,2525.3,2525.2,0.00594908]
[1748648756425,5.79168,2525.3,2525.2,0.00594908]
[1748648758528,0.79168,2525.3,2525.2,0.00594908]
[1748648759128,2.0341922,2525.3,2525.2,0.00594908]
[1748648759325,9.4503122,2525.3,2524.2,3.2078]
[1748648759519,3.99966,2524.8,2524.5,5.693]
[1748648759724,0.79186,2524.8,2524.6,2.2108]
[1748648759925,3.2078,2525.1,2524.6,2.2108]
[1748648760128,1.2425122,2525.2,2524.8,3.2078]
[1748648760427,1.2425122,2525.2,2525.1,0.79175]
[1748648760627,0.00594908,2525.3,2525.1,5.693]
[1748648760828,0.00594908,2525.3,2525.2,2.2498]
[1748648761629,0.20354908,2525.3,2525.2,2.2498]
[1748648762827,0.99522908,2525.3,2525.2,2.2498]
[1748648763035,0.79178,2525.0,2524.9,7.856]
[1748648763327,0.79178,2525.0,2524.9,5.693]
[1748648763533,3.2078,2525.1,2524.7,0.00594908]
[1748648763534,0.79184,2524.8,2524.7,0.00594908]
[1748648763833,3.99964,2524.8,2524.7,0.00594908]
[1748648764228,4.00963698,2524.8,2524.7,0.00594908]
[1748648764730,4.00963698,2524.8,2524.5,5.693]
[1748648764731,0.7919,2524.6,2524.5,5.693]
[1748648765326,6.7639,2524.6,2524.5,5.693]
[1748648765725,0.79197,2524.4,2524.3,0.00594908]
[1748648765926,3.99977,2524.4,2524.3,0.00594908]
[1748648766129,8.99977,2524.4,2524.3,0.00594908]
[1748648766332,1.98003,2524.3,2523.7,5.694]
[1748648766533,0.79214,2523.9,2523.7,5.694]
[1748648766729,3.2078,2524.0,2522.8,3.2078]
[1748648767029,3.2078,2523.0,2522.9,2.1464]
[1748648767232,0.79236,2523.2,2522.9,2.1464]
[1748648767233,0.79234,2523.2,2522.9,2.1464]
[1748648767534,0.79826908,2523.3,2522.9,2.1464]
[1748648767738,0.79235,2523.2,2522.9,2.1464]
[1748648767933,1.24782177,2523.0,2522.9,2.1464]
[1748648768231,0.00594908,2523.3,2523.2,0.79234]
[1748648768436,0.00594908,2523.3,2523.2,9.69414]
[1748648768732,0.00594908,2523.3,2523.2,5.694]
[1748648770023,0.00594908,2523.3,2523.1,2.1464]
[1748648770230,0.00594908,2523.3,2523.2,8.59254]
[1748648770734,0.00594908,2523.3,2523.2,7.8002]
[1748648771135,0.00594908,2523.3,2523.2,13.59254]
[1748648771631,3.2078,2524.0,2523.3,1.98077]
[1748648771828,3.2078,2524.4,2523.8,3.2078]
[1748648772028,3.2078,2524.4,2523.9,13.1262]
[1748648772236,3.99977,2524.4,2523.9,12.3341]
[1748648772430,3.99977,2524.4,2524.0,0.79208]
[1748648772631,0.792,2524.3,2524.1,2.1052]
[1748648772828,0.792,2524.3,2523.3,1.98077]
[1748648772829,1.98,2524.3,2523.6,5.695]
[1748648773138,3.2078,2524.1,2523.6,6.48721]
[1748648773435,3.2078,2524.1,2523.7,5.35098]
[1748648773635,0.79211,2524.0,2523.8,2.2666]
[1748648774139,0.79216,2523.8,2523.5,6.48723]
[1748648774434,3.2078,2524.1,2523.8,2.2666]
[1748648774836,3.21374908,2524.4,2523.8,2.2666]
[1748648775030,0.79205,2524.2,2523.8,3.05874]
[1748648775431,3.21374908,2524.4,2523.8,3.05875]
[1748648775637,3.21374908,2524.4,2523.8,2.2666]
[1748648775939,3.21374908,2524.4,2524.1,0.79205]
[1748648776233,3.21374908,2524.4,2524.2,10.0782]
[1748648776434,3.21374908,2524.4,2524.3,2.2261]
[1748648777030,0.00594908,2524.4,2524.3,2.2261]
[1748648777233,0.00594908,2524.4,2524.3,3.0181]
[1748648777531,0.79791908,2524.4,2524.3,2.2261]
[1748648777833,0.792,2524.3,2524.2,5.695]
[1748648778139,7.56,2524.3,2524.2,5.695]
[1748648778331,0.79203,2524.2,2524.1,0.00594908]
[1748648778532,6.30643,2524.2,2524.1,0.00594908]
[1748648778734,11.30643,2524.2,2524.1,0.00594908]
[1748648778932,11.30643,2524.2,2524.1,9.08e-06]
[1748648779434,17.27843,2524.2,2524.1,9.08e-06]
[1748648780740,18.51691144,2524.2,2524.1,9.08e-06]
[1748648782136,13.51691144,2524.2,2524.1,9.08e-06]
[1748648782343,18.51691144,2524.2,2524.1,9.08e-06]
[1748648782641,11.21031144,2524.2,2524.1,9.08e-06]
[1748648782939,5.23831144,2524.2,2524.1,9.08e-06]
[1748648783344,3.99983,2524.2,2524.1,9.08e-06]
[1748648783841,8.99983,2524.2,2524.1,9.08e-06]
[1748648785836,10.23948768,2524.2,2524.1,9.08e-06]
[1748648786336,4.44745768,2524.2,2524.1,9.08e-06]
[1748648786644,0.00594908,2524.4,2524.1,13.87580908]
[1748648786833,0.00594908,2524.4,2524.3,0.792]
[1748648787338,0.79791908,2524.4,2524.3,2.2369]
[1748648787538,0.00594908,2524.4,2524.3,7.9059]
[1748648787743,0.00594908,2524.4,2524.3,2.2369]
[1748648788042,0.79791908,2524.4,2524.2,2.3273]
[1748648788242,0.00594908,2524.4,2524.2,4.4898]
[1748648788842,0.198,2524.3,2524.2,4.4898]
[1748648789445,3.21779698,2524.8,2524.7,0.79187]
[1748648789742,0.00999698,2524.8,2524.7,5.669]
[1748648789949,0.00999698,2524.8,2524.7,12.8315]
[1748648790132,0.00999698,2524.8,2524.7,2.1625]
[1748648790338,0.00999698,2524.8,2524.7,8.62237]
[1748648790538,0.00999698,2524.8,2524.7,7.8305]
[1748648791338,0.7919,2524.6,2524.5,8.8758]
[1748648791544,5.972,2524.7,2524.5,8.8758]
[1748648791742,6.7639,2524.7,2524.5,8.8758]
[1748648791940,12.33218,2524.7,2524.5,5.668]
[1748648792247,9.12438,2524.7,2524.5,5.668]
[1748648792741,8.3325,2524.7,2524.5,6.45993]
[1748648792945,8.3325,2524.7,2524.6,0.7919]
[1748648792946,0.1977,2524.7,2524.6,0.7919]
[1748648793147,0.1977,2524.7,2524.6,2.9081]
[1748648793446,0.1977,2524.7,2524.6,2.1162]
[1748648794246,0.98958,2524.7,2524.5,5.668]
[1748648794447,0.98959,2524.7,2524.5,5.668]
[1748648794745,0.1977,2524.7,2524.5,5.668]
[1748648794945,0.1977,2524.7,2524.6,0.79191]
[1748648795138,0.1977,2524.7,2524.6,2.96801]
[1748648795945,0.1977,2524.7,2524.6,2.1761]
[1748648796348,0.79191,2524.6,2524.5,5.668]
[1748648797243,0.79191,2524.6,2524.1,9.08e-06]
[1748648797244,0.79203,2524.2,2524.1,9.08e-06]
[1748648797449,3.99977,2524.4,2524.1,9.08e-06]
[1748648797649,0.79197,2524.4,2524.1,2.11420908]
[1748648797944,2.2698,2524.5,2524.1,2.11420908]
[1748648798143,0.79201,2524.3,2524.1,2.11420908]
[1748648798747,0.79203,2524.2,2524.1,2.11420908]
[1748648798940,0.79203,2524.2,2524.1,9.08e-06]
[1748648799145,11.76403,2524.2,2524.1,9.08e-06]
[1748648799341,9.03383,2524.2,2524.1,9.08e-06]
[1748648800654,14.03383,2524.2,2524.1,9.08e-06]
[1748648801149,15.25746873,2524.2,2524.1,9.08e-06]
[1748648801645,14.66124201,2524.2,2522.7,7.6238]
[1748648801844,3.2078,2523.3,2522.7,10.084]
[1748648802146,1.98071,2523.4,2522.7,7.8598]
[1748648802147,0.79247,2522.8,2522.7,7.8598]
[1748648802451,0.79246,2522.9,2522.7,7.8598]
[1748648802750,3.2078,2523.0,2522.5,0.00594908]
[1748648802751,0.79253,2522.6,2522.5,0.00594908]
[1748648802950,4.00033,2522.6,2522.5,0.00594908]
[1748648804047,6.21943,2522.6,2522.5,0.00594908]
[1748648804350,0.79269,2522.1,2522.0,2.2529]
[1748648804748,0.79282,2521.7,2520.4,1.983]
[1748648805051,4.0006,2521.8,2521.6,0.07931472]
[1748648805548,0.79282,2521.7,2521.6,0.07931472]
[1748648805953,3.01192,2521.7,2521.6,0.07931472]
[1748648806849,0.79282,2521.7,2521.6,0.07931472]
[1748648808954,2.91522,2521.7,2521.6,0.07931472]
[1748648809156,0.79288,2521.5,2521.4,0.00594908]
[1748648809352,4.00068,2521.5,2521.4,0.00594908]
[1748648810251,14.97268,2521.5,2521.4,0.00594908]
[1748648811054,9.1798,2521.5,2521.4,0.00594908]
[1748648811450,0.00594908,2521.7,2521.4,5.67794908]
[1748648811752,0.00594908,2521.7,2521.5,2.98248]
[1748648811953,0.00594908,2521.7,2521.5,5.09848]
[1748648812143,0.00594908,2521.7,2521.5,4.3056]
[1748648812855,0.00594908,2521.7,2521.5,5.09847]
[1748648813054,0.00594908,2521.7,2521.5,4.3056]
[1748648813256,0.79285,2521.6,2521.5,4.3056]
[1748648813751,0.79285,2521.6,2521.5,2.1896]
[1748648814549,0.79285,2521.6,2521.4,0.00594908]
[1748648814753,0.79288,2521.5,2521.4,0.00594908]
[1748648815159,3.13508,2521.5,2521.4,0.00594908]
[1748648815663,1.98228,2521.4,2520.8,5.647]
[1748648815862,3.2078,2521.0,2520.8,5.647]
[1748648816258,3.2078,2521.5,2520.9,2.97345]
[1748648816757,4.0007,2521.5,2520.9,2.18634908]
[1748648816965,3.2078,2521.5,2521.0,0.79301]
[1748648817156,3.2078,2521.5,2521.1,2.1804]
[1748648817358,0.79295,2521.3,2521.1,2.1804]
[1748648817663,3.2078,2521.5,2521.1,2.1804]
[1748648817960,0.79297,2521.2,2521.1,2.1804]
[1748648818960,0.79302,2521.1,2520.9,0.00594908]
[1748648819166,0.79302,2521.1,2520.9,2.22064908]
[1748648819467,4.00078,2521.2,2520.9,2.22064908]
[1748648820063,3.2078,2521.2,2520.9,2.22064908]
[1748648820469,0.79304,2521.0,2520.9,2.22064908]
[1748648821467,3.2078,2521.2,2520.9,2.22064908]
[1748648821664,5.972,2521.4,2520.9,10.42844908]
[1748648821865,5.972,2521.4,2520.9,5.42844908]
[1748648822365,3.2078,2521.6,2520.9,5.42844908]
[1748648822571,3.2078,2521.6,2521.3,0.79294]
[1748648822766,3.2078,2521.6,2521.4,2.2336]
[1748648822966,0.99108,2521.5,2521.4,2.2336]
[1748648823171,0.1982,2521.5,2521.0,2.2336]
[1748648823373,3.2078,2521.3,2520.9,5.65494908]
[1748648823573,4.00084,2521.0,2520.9,0.00594908]
[1748648823770,3.2078,2521.0,2520.9,0.00594908]
[1748648823968,0.79301,2521.1,2520.9,0.00594908]
[1748648824474,0.79301,2521.1,2520.9,0.07588765]
[1748648824671,3.2078,2521.3,2521.0,2.2218]
[1748648824866,6.1702,2521.5,2521.0,2.2218]
[1748648825070,6.1702,2521.5,2521.1,11.0977]
[1748648825364,0.1982,2521.5,2521.4,0.79291]
[1748648825567,0.00594908,2521.7,2521.6,0.79285]
[1748648825773,0.00594908,2521.7,2521.6,11.44185]
[1748648826372,0.00594908,2521.7,2521.6,6.44185]
[1748648827477,0.00594908,2521.7,2521.6,11.44185]
[1748648827866,0.79877908,2521.7,2521.5,2.2218]
[1748648828071,0.79285,2521.6,2521.5,2.2218]
[1748648828270,4.00657908,2521.7,2521.5,2.2218]
[1748648828570,0.00594908,2521.7,2521.5,2.2218]
[1748648829781,0.00594908,2521.7,2521.6,0.79285]